Cogmind - Beta 11 @@@ ROGUE MODE // 2022.07.12 @ 10:43:34 Player: CreepyD Result: Destroyed by G-67 Veteran with Field Laser Performance ------------- Evolutions (6) 3000 Regions Visited (12) 2400 Robots Destroyed (72) 360 Value Destroyed (1637) 1637 Prototype IDs (12) 240 Alien Tech Used (0) 0 Bonus (-1384) -1384 TOTAL SCORE: 6253 Bonus ------- High Alert Combat Kills 133 Follower Combat Kills 1306 Friendly Fire -2823 Cogmind --------- Core Integrity 0/1150 Matter 300/300 Energy 530/530 System Corruption 2% Temperature Cool (0) Movement Walking (120) Location -4/Extension Parts ------- > --- POWER (2) -------- Neutrino Core Neutrino Core > --- PROPULSION (6) --- Flexi-carbon Leg Flexi-carbon Leg Flexi-carbon Leg Myomer Leg Myomer Leg > --- UTILITY (8) ------ Experimental Signal Interpreter Transport Network Coupler Improved Salvage Targeting Computer Improved Salvage Targeting Computer Improved Targeting Computer Improved Target Analyzer System Shield > --- WEAPON (3) ------- Katana > --- INVENTORY (5) ---- Flexi-carbon Leg Flexi-carbon Leg Advanced Melee Analysis Suite Improved Target Analyzer Bore Cannon Peak State ------------ > --- POWER ------------ Antimatter Reactor > --- PROPULSION ------- Nuclear Pulse Thruster Impulse Thruster Impulse Thruster Impulse Thruster Impulse Thruster Impulse Thruster > --- UTILITY ---------- Experimental Signal Interpreter Transport Network Coupler Improved Targeting Computer Improved Target Analyzer Improved Focal Shield System Shield > --- WEAPON ----------- Bore Cannon Micro-nuke Launcher > --- INVENTORY -------- Antimatter Reactor Light Antimatter Reactor Impulse Thruster Enhanced Optical Array Advanced Melee Analysis Suite [Rating: 87] Favorites ----------- Power Antimatter Reactor Engine Light Ion Engine Power Core Nuclear Core Reactor Antimatter Reactor Propulsion Improved Cesium-ion Thruster Leg Flexi-carbon Leg Wheel Wheel Hover Unit Improved Hover Unit Flight Unit Improved Cesium-ion Thruster Utility Improved Target Analyzer Device Heart of Steel Processor Improved Target Analyzer Hackware System Shield Protection Improved Light Armor Plating Weapon Long-range Missile Launcher Energy Gun EM Pulse Gun Energy Cannon Advanced Beam Cannon Ballistic Gun Assault Rifle Ballistic Cannon Bore Cannon Launcher Long-range Missile Launcher Special Weapon Remote Datajack Impact Weapon Heavy Flail Slashing Weapon Falx Build | -11 -10 -9 -8 -7 -6 -6 -6 -5 -4 -4 -4 -4 ------- Run | Scr Mat Mat Mat Fac Fac Low Low Fac Fac Was Fac Ext Slots Evolved 12 | . . 2 2 2 2 . . 2 2 . . . Power 1 | . . . . 1 . . . . . . . . Propulsion 4 | . . 2 . 1 1 . . . . . . . Utility 6 | . . . 1 . 1 . . 2 2 . . . Weapon 1 | . . . 1 . . . . . . . . . Parts Attached 114 | 7 2 11 13 17 3 1 4 12 5 8 17 14 Power 19 | 1 . 1 2 4 . . 2 2 . 3 1 3 Engine 5 | 1 . 1 1 . . . . 1 . . 1 . Core 10 | . . . 1 4 . . 2 1 . . . 2 Reactor 4 | . . . . . . . . . . 3 . 1 Propulsion 43 | 2 2 6 3 5 . . 1 3 2 3 8 8 Treads . | . . . . . . . . . . . . . Leg 8 | . . . . . . . . . . . 1 7 Wheel 3 | 2 . 1 . . . . . . . . . . Hover 9 | . 2 3 . . . . . . 2 1 1 . Flight 23 | . . 2 3 5 . . 1 3 . 2 6 1 Utility 30 | 2 . 1 5 2 2 1 1 6 2 1 5 2 Device 16 | 2 . . 2 . 2 . 1 6 1 1 1 . Storage . | . . . . . . . . . . . . . Processor 11 | . . . 3 2 . 1 . . . . 3 2 Hackware 2 | . . . . . . . . . 1 . 1 . Protection 1 | . . 1 . . . . . . . . . . Artifact . | . . . . . . . . . . . . . Weapon 22 | 2 . 3 3 6 1 . . 1 1 1 3 1 Energy Gun 5 | 1 . 2 2 . . . . . . . . . Energy Cannon 2 | . . . 1 1 . . . . . . . . Ballistic Gun 1 | 1 . . . . . . . . . . . . Ballistic Cannon 3 | . . . . 1 . . . . 1 . 1 . Launcher 4 | . . . . 1 . . . . . 1 2 . Special Weapon 1 | . . . . 1 . . . . . . . . Impact Weapon 3 | . . 1 . 2 . . . . . . . . Slashing Weapon 3 | . . . . . 1 . . 1 . . . 1 Piercing Weapon . | . . . . . . . . . . . . . Special Melee Weapon . | . . . . . . . . . . . . . Unidentified Prototypes 7 | . . . 2 3 . . . 1 . . 1 . Parts Lost 55 | . . 11 3 6 . . 6 9 7 1 3 9 Power 6 | . . 1 . . . . 2 2 . . . 1 Propulsion 27 | . . 6 1 4 . . 3 3 2 1 2 5 Utility 12 | . . 2 1 2 . . 1 1 4 . . 1 Weapon 10 | . . 2 1 . . . . 3 1 . 1 2 Highest Loss Streak 9 | . . 9 2 6 . . 5 7 7 1 1 8 To Critical Strikes . | . . . . . . . . . . . . . Average Slot Usage (%) 51 | . 98 67 84 80 81 85 66 60 36 22 62 61 Engine 1 | . 14 6 3 . . . . 2 . . . . Core 2 | . . . 5 14 13 13 8 6 . . . 1 Reactor 2 | . . . . . . . . . . 4 5 3 Hover 3 | . 16 23 . . . . . . . 1 4 . Flight 10 | . . 2 24 31 26 26 17 13 8 2 17 13 Device 6 | . 28 6 7 8 4 6 9 14 12 2 3 . Processor 10 | . . . 19 9 20 19 13 11 9 5 17 26 Energy Gun 1 | . 14 10 7 . . . . . . . . . Launcher 2 | . . . . 2 . . . . . 4 5 1 Impact Weapon 1 | . . 6 9 7 6 6 6 4 . . . . Naked Turns . | . . . . . . . . . . . . . Heaviest Build 44 | 9 9 12 17 20 24 24 24 20 11 34 44 38 Greatest Support 110 | 20 20 28 22 28 29 29 29 27 20 20 41 110 Greatest Overweight (x) 11 | . 2 1 1 1 . . 4 1 3 11 4 3 Average Overweight (x) . | . . . . . . . . . . 4 . . Largest Inventory Capacity 5 | 5 5 5 5 5 5 5 5 5 5 5 5 5 Average Capacity 5 | 5 5 5 5 5 5 5 5 5 5 5 5 5 Most Carried 5 | 3 5 5 5 5 5 5 5 5 5 5 5 5 Average Carried 4 | . 3 4 4 4 4 4 4 4 3 3 4 4 Final Capacity 5 | 5 5 5 5 5 5 5 5 5 5 5 5 5 Final Carried 5 | 1 5 5 5 4 5 5 5 5 5 5 5 5 Class Distribution -------------------- 58% | Mutant 20% | Sprinter 11% | Scavenger-Sprinter 7% | Scavenger-Mutant Dominant Class ---------------- Mutant | -10/Materials Mutant | -9/Materials Sprinter | -8/Materials Scavenger-Sprinter | -7/Factory Sprinter | -6/Factory Sprinter | -6/Lower Caves Sprinter | -6/Lower Caves Sprinter | -5/Factory Sprinter | -4/Factory Mutant | -4/Waste Scavenger-Sprinter | -4/Factory Mutant | -4/Extension Resources | -11 -10 -9 -8 -7 -6 -6 -6 -5 -4 -4 -4 -4 ----------- Run | Scr Mat Mat Mat Fac Fac Low Low Fac Fac Was Fac Ext Matter Collected 3815 | 178 130 55 110 119 20 22 78 491 266 1513 410 423 Remotely . | . . . . . . . . . . . . . Salvage Created 2195 | 66 113 220 282 154 20 . 75 549 . 229 284 203 Parts 105 | 5 6 17 19 8 . . 6 17 . 9 8 10 Haulers Intercepted 5 | . . . 3 1 . . . . . . 1 . Recyclers Shooed 2 | 1 . . . . . . . . 1 . . . Parts Field Recycled . | . . . . . . . . . . . . . Retrieved Matter . | . . . . . . . . . . . . . Parts Self-Destructed 3 | . . . . . . . 3 . . . . . Prevented 1 | . . . . . . . 1 . . . . . Kills | -11 -10 -9 -8 -7 -6 -6 -6 -5 -4 -4 -4 -4 ------- Run | Scr Mat Mat Mat Fac Fac Low Low Fac Fac Was Fac Ext Combat Hostiles Destroyed 36 | . 1 11 5 7 . . 3 3 . . 4 2 Melee 16 | . . 6 . 2 . . 3 3 . . . 2 Guns 6 | . 1 3 2 . . . . . . . . . Cannons 2 | . . . 1 . . . . . . . 1 . AOE 10 | . . . 2 5 . . . . . . 3 . Classes Destroyed 14 | 1 2 2 2 1 1 . . 3 . 1 1 . Worker 9 | . . . . . 1 . . 7 . . 1 . Builder 3 | . . . . . . . . 2 . . 1 . Tunneler 3 | 3 . . . . . . . . . . . . Hauler 5 | . . . 3 1 . . . . . . 1 . Recycler 3 | . 1 . . . . . . 2 . . . . Mechanic 1 | . . . . . . . . 1 . . . . Watcher 3 | . . . . 1 . . . 1 . . 1 . Swarmer 21 | . . 9 . 7 . . 3 2 . . . . Cutter 3 | . . . 3 . . . . . . . . . Grunt 7 | . 1 1 2 . . . . . . . 2 1 Sentry 2 | . . 1 . . . . . . . . . 1 Hunter 2 | . . . . . . . . . . . 2 . Programmer 1 | . . . . . . . . 1 . . . . Surgeon 1 | . . . . . . . . . . 1 . . Wasp 4 | . . . . . . . . . . 4 . . Thug 3 | . . . . . . . . . . 1 1 1 Savage 1 | . . . . . . . . . . 1 . . Best Kill Streak 5 | 2 1 4 4 5 1 . 3 5 . . 3 1 Combat Bots Only 5 | . 1 4 3 5 . . 3 2 . . 2 1 Max Kills in Single Turn 5 | 1 1 1 2 3 1 . 1 1 . 5 2 1 Gunslinging . | . . . . . . . . . . . . . Exploded 3 | . . . 2 3 . . . . . . 1 . Melee 1 | . . 1 . 1 . . 1 1 . . . 1 Uniques/NPCs Destroyed . | . . . . . . . . . . . . . Combat | -11 -10 -9 -8 -7 -6 -6 -6 -5 -4 -4 -4 -4 -------- Run | Scr Mat Mat Mat Fac Fac Low Low Fac Fac Was Fac Ext Damage Taken 6091 | . . 894 460 405 . . 619 767 1402 167 628 749 Core 2126 | . . 254 111 97 . . 159 341 874 37 104 149 Absorbed by Shields . | . . . . . . . . . . . . . Core Remaining (%) 78 | 100 100 36 79 86 . . 81 65 . . . . Volleys Fired 98 | 6 2 10 21 3 . . . 5 2 2 46 1 Largest 2 | 2 2 2 2 1 . . . 1 1 1 2 1 Hottest 124 | 60 60 85 124 30 . . . 5 65 43 100 49 Shots Fired 132 | 12 4 14 30 3 . . . 5 2 4 57 1 Gun 51 | 12 4 14 21 . . . . . . . . . Cannon 51 | . . . 9 . . . . . 2 . 40 . Launcher 25 | . . . . 3 . . . . . 4 17 1 Special 5 | . . . . . . . . 5 . . . . Kinetic 50 | 6 2 . . . . . . . 2 . 40 . Thermal 30 | . . . 30 . . . . . . . . . Explosive 25 | . . . . 3 . . . . . 4 17 1 Electromagnetic 22 | 6 2 14 . . . . . . . . . . Robot Hit Streak 12 | 3 2 3 5 6 . . . 11 12 1 8 . Robot Miss Streak 3 | 3 2 2 3 . . . . . 1 2 3 . Penetration Max 2 | . . . . . . . . . . . 2 . Secondary Targets . | . . . . . . . . . . . . . Shots Hit Robots 143 | 6 2 31 16 10 1 . 6 29 1 1 30 10 Core Hits 97 | 3 3 10 11 8 . . 3 4 . 29 19 7 Critical Kills 4 | . . . . . . . . 1 . . 3 . Critical Parts Destroyed 15 | . . 1 . 1 . . . 5 . . 8 . Critical Strikes 26 | . . 1 1 1 . . 1 8 1 . 11 2 Burn 1 | . . . 1 . . . . . . . . . Destroy 11 | . . . . . . . . . . . 11 . Blast 1 | . . . . . . . . . 1 . . . Smash 8 | . . 1 . 1 . . . 6 . . . . Sever 5 | . . . . . . . 1 2 . . . 2 Melee Attacks 118 | . . 39 2 15 2 . 11 35 . . . 14 Impact 83 | . . 39 2 15 1 . 2 24 . . . . Slashing 35 | . . . . . 1 . 9 11 . . . 14 Piercing . | . . . . . . . . . . . . . Sneak Attacks 20 | . . 1 1 1 1 . . 15 . . . 1 Combat Hostiles 5 | . . . . . . . . 4 . . . 1 Follow-up Attacks 4 | . . . . . . . 2 2 . . . . Damage Inflicted 8423 | 102 42 650 709 847 89 . 283 2054 45 1893 1248 461 Guns 463 | 102 42 118 201 . . . . . . . . . Cannons 465 | . . . 41 . . . . . 28 . 396 . Explosions 3744 | . . . 412 471 . . . . . 1893 852 116 Melee 3724 | . . 522 55 376 89 . 283 2054 . . . 345 Ramming 27 | . . 10 . . . . . . 17 . . . Kinetic 504 | 50 30 . . . . . . . 28 . 396 . Thermal 654 | . . . 654 . . . . . . . . . Explosive 3305 | . . . . 471 . . . . . 1893 825 116 Electromagnetic 209 | 52 12 118 . . . . . . . . 27 . Impact 2786 | . . 522 55 376 . . 55 1778 . . . . Slashing 938 | . . . . . 89 . 228 276 . . . 345 Piercing . | . . . . . . . . . . . . . Highest Corruption 3 | . . 1 . . . . . 3 2 2 2 2 Average Corruption 1 | . . 1 . . . . . 2 1 2 2 2 Corruption Purged . | . . . . . . . . . . . . . Corruption Blocked . | . . . . . . . . . . . . . Effects 40 | . . . . . . . . 2 2 22 8 6 Message Errors 7 | . . . . . . . . 1 1 4 1 . Matter Fused 8 | . . . . . . . . 1 . 4 2 1 Heat Flow Errors 7 | . . . . . . . . . 1 3 2 1 Energy Discharges 6 | . . . . . . . . . . 4 2 . Parts Rejected 2 | . . . . . . . . . . . . 2 Data Loss (minor) 4 | . . . . . . . . . . 3 . 1 Data Loss (major) 1 | . . . . . . . . . . 1 . . Misfires 2 | . . . . . . . . . . 2 . . Alerts 3 | . . . . . . . . . . 1 1 1 Overload Shots . | . . . . . . . . . . . . . Overflow Damage 1803 | . . 67 188 175 49 . 5 1151 . 135 32 1 Projectiles 20 | . . . . . . . . . . . 20 . Explosions 329 | . . . 155 27 . . . . . 135 12 . Melee 1454 | . . 67 33 148 49 . 5 1151 . . . 1 Knockbacks 9 | . . 1 . 1 . . . 5 . . 2 . Impact 7 | . . 1 . 1 . . . 5 . . . . Kinetic 2 | . . . . . . . . . . . 2 . Secondary . | . . . . . . . . . . . . . Self-Inflicted Damage 220 | . . 5 19 . . . . . 6 168 22 . Shots 5 | . . . 1 . . . . . . 3 1 . Rammed 10 | . . 2 . . . . . . 8 . . . Targets Rammed 10 | . . 2 . . . . . . 8 . . . Kicked . | . . . . . . . . . . . . . Crushed . | . . . . . . . . . . . . . Highest Temperature 482 | . 6 180 319 82 . . 8 6 254 202 482 123 Average Temperature 79 | . 4 87 126 21 . . 6 6 141 104 86 21 Received Heat Transfer 610 | . . 120 81 . . . 66 39 67 . 51 186 Effects 2 | . . . . . . . . . . . 2 . Shutdowns 1 | . . . . . . . . . . . 1 . Energy Bleed 1 | . . . . . . . . . . . 1 . Siege Activations . | . . . . . . . . . . . . . Robots Corrupted 1 | . . 1 . . . . . . . . . . Combat Hostiles 1 | . . 1 . . . . . . . . . . Parts Fried 15 | . . 4 1 2 . . 1 7 . . . . Impact Corruptions 42 | . . 7 1 5 . . 1 28 . . . . Robots Melted . | . . . . . . . . . . . . . Combat Hostiles . | . . . . . . . . . . . . . Parts Melted . | . . . . . . . . . . . . . Heat Transferred 829 | . . . 829 . . . . . . . . . Parts Sabotaged . | . . . . . . . . . . . . . Parts Stolen . | . . . . . . . . . . . . . Parts Stripped . | . . . . . . . . . . . . . Power Chain Reactions 4 | . . . . . . . . . . . 4 . Missiles Intercepted . | . . . . . . . . . . . . . Alert | -11 -10 -9 -8 -7 -6 -6 -6 -5 -4 -4 -4 -4 ------- Run | Scr Mat Mat Mat Fac Fac Low Low Fac Fac Was Fac Ext Peak Influence 1111 | 15 102 312 259 500 265 . . 607 425 90 1111 770 Initial 543 | . 9 42 131 76 245 . . 147 291 88 . 543 Average 224 | 5 40 160 103 256 247 . . 316 334 28 466 618 Maximum Alert Level 4 | . . 1 1 2 1 . . 2 2 . 4 3 Low Security (%) 55 | 100 100 58 82 47 . . . 21 . 100 21 . Level 1 22 | . . 41 17 22 100 . . 54 74 . 26 . Level 2 14 | . . . . 30 . . . 23 25 . 18 77 Level 3 7 | . . . . . . . . . . . 32 22 Level 4 . | . . . . . . . . . . . . . Level 5 . | . . . . . . . . . . . . . High Security . | . . . . . . . . . . . . . Max Security . | . . . . . . . . . . . . . Squads Dispatched 21 | . 1 3 3 . 1 . . 3 2 . 6 2 Investigation 2 | . . . . . 1 . . . . . . 1 Extermination 2 | . . . . . . . . 1 . . 1 . Reinforcement 16 | . 1 3 3 . . . . 2 2 . 4 1 Assault . | . . . . . . . . . . . . . Garrison 1 | . . . . . . . . . . . 1 . Intercept . | . . . . . . . . . . . . . Searches Triggered . | . . . . . . . . . . . . . Construction Impeded 3 | . . . . . . . . 1 . . 1 1 Haulers Reinforced 1 | . . . . . . . . . . . 1 . Active Scanning Responses . | . . . . . . . . . . . . . Cargo Convoy Interrupts . | . . . . . . . . . . . . . Stealth | -11 -10 -9 -8 -7 -6 -6 -6 -5 -4 -4 -4 -4 --------- Run | Scr Mat Mat Mat Fac Fac Low Low Fac Fac Was Fac Ext Distress Signals 8 | . 1 . 1 1 . . . 2 . . 3 . Communications Jammed . | . . . . . . . . . . . . . Distress Signals . | . . . . . . . . . . . . . Times Spotted 193 | . 5 23 19 23 1 . 13 33 25 1 34 16 Peak Tracking Total 20 | . 3 7 11 8 1 . 5 20 17 1 13 6 Tactical Retreats 24 | . 1 3 2 4 . . 3 4 4 . 2 1 Traps | -11 -10 -9 -8 -7 -6 -6 -6 -5 -4 -4 -4 -4 ------- Run | Scr Mat Mat Mat Fac Fac Low Low Fac Fac Was Fac Ext Traps Triggered 3 | . . 1 . . . . . . 2 . . . Indirectly . | . . . . . . . . . . . . . Trap Hack Attempts . | . . . . . . . . . . . . . Triggered . | . . . . . . . . . . . . . Disarmed . | . . . . . . . . . . . . . Reprogrammed . | . . . . . . . . . . . . . Reused . | . . . . . . . . . . . . . Traps Extracted . | . . . . . . . . . . . . . Installed . | . . . . . . . . . . . . . Triggered . | . . . . . . . . . . . . . Machines | -11 -10 -9 -8 -7 -6 -6 -6 -5 -4 -4 -4 -4 ---------- Run | Scr Mat Mat Mat Fac Fac Low Low Fac Fac Was Fac Ext Machines Disabled 26 | . . . 2 1 . . . . . . 23 . Max in Single Turn 8 | . . . 2 1 . . . . . . 8 . Garrison Access 1 | . . . . . . . . 1 . . . . Machines Sabotaged . | . . . . . . . . . . . . . Garrisons Compromised . | . . . . . . . . . . . . . Overloaded Fab Kills . | . . . . . . . . . . . . . Hacking | -11 -10 -9 -8 -7 -6 -6 -6 -5 -4 -4 -4 -4 --------- Run | Scr Mat Mat Mat Fac Fac Low Low Fac Fac Was Fac Ext Machines Accessed 34 | . 2 2 5 3 2 1 . 5 5 . 5 4 Terminals 24 | . 2 2 5 2 . . . 3 4 . 2 4 Fabricators 3 | . . . . . 1 . . 1 . . 1 . Repair Stations 1 | . . . . . . . . . . . 1 . Recycling Units 4 | . . . . 1 1 . . . 1 . 1 . Scanalyzers . | . . . . . . . . . . . . . Garrison Access 1 | . . . . . . . . 1 . . . . Total Hacks 64 | . 5 7 12 3 3 1 . 5 10 . 11 7 Successful 28 | . 2 3 7 1 2 1 . 3 4 . 2 3 Failed 36 | . 3 4 5 2 1 . . 2 6 . 9 4 Catastrophic 14 | . 1 1 2 1 1 . . 2 2 . 2 2 Database Lockouts . | . . . . . . . . . . . . . Manual 15 | . 3 2 5 . . . . . 3 . 2 . Terminals 48 | . 5 7 12 2 . . . 3 7 . 5 7 Fabricators 6 | . . . . . 2 . . 1 . . 3 . Repair Stations 1 | . . . . . . . . . . . 1 . Recycling Units 7 | . . . . 1 1 . . . 3 . 2 . Scanalyzers . | . . . . . . . . . . . . . Garrison Access 1 | . . . . . . . . 1 . . . . Terminal Hacks 22 | . 2 3 7 1 . 1 . 1 3 . 1 3 Record 1 | . . . . . . . . . 1 . . . Part Schematic 1 | . . . 1 . . . . . . . . . Prototype ID Bank 2 | . . . 1 . . . . . . . . 1 Open Door 3 | . . . . . . 1 . . . . . 2 Open DSF 1 | . . . . . . . . . 1 . . . Branch Access Points 3 | . 1 1 1 . . . . . . . . . Emergency Access Points 2 | . . . 1 . . . . 1 . . . . Unreport Threat 4 | . . . 2 . . . . . 1 . 1 . Locate Traps 1 | . . 1 . . . . . . . . . . Zone Layout 4 | . 1 1 1 1 . . . . . . . . Fabricator Hacks 4 | . . . . . 2 . . 1 . . 1 . Load Schematic 2 | . . . . . 1 . . . . . 1 . Build 2 | . . . . . 1 . . 1 . . . . Repair Station Hacks . | . . . . . . . . . . . . . Recycling Unit Hacks 1 | . . . . . . . . . 1 . . . Retrieve Components 1 | . . . . . . . . . 1 . . . Scanalyzer . | . . . . . . . . . . . . . Garrison Access Hacks 1 | . . . . . . . . 1 . . . . Seal Access 1 | . . . . . . . . 1 . . . . Unauthorized Hacks . | . . . . . . . . . . . . . Terminals . | . . . . . . . . . . . . . Fabricators . | . . . . . . . . . . . . . Repair Stations . | . . . . . . . . . . . . . Recycling Units . | . . . . . . . . . . . . . Scanalyzers . | . . . . . . . . . . . . . Garrison Access . | . . . . . . . . . . . . . Data Cores Recovered . | . . . . . . . . . . . . . Used . | . . . . . . . . . . . . . Hacking Detections 23 | . 2 1 5 2 2 . . 2 3 . 4 2 Full Trace Events 2 | . . . . . 1 . . . . . . 1 Feedback Events . | . . . . . . . . . . . . . Feedback Blocked . | . . . . . . . . . . . . . Robot Schematics Acquired . | . . . . . . . . . . . . . Robots Built . | . . . . . . . . . . . . . Authchips . | . . . . . . . . . . . . . Time 169 | . . . . . . . . 169 . . . . Total Robot Build Rating . | . . . . . . . . . . . . . Part Schematics Acquired 1 | . . . 1 . . . . . . . . . Parts Built . | . . . . . . . . . . . . . Authchips . | . . . . . . . . . . . . . Time 73 | . . . . . 73 . . . . . . . Total Part Build Rating . | . . . . . . . . . . . . . Parts Repaired . | . . . . . . . . . . . . . Time . | . . . . . . . . . . . . . Parts Recycled . | . . . . . . . . . . . . . Recycled Matter . | . . . . . . . . . . . . . Retrieved Matter . | . . . . . . . . . . . . . Retrieved Components . | . . . . . . . . . . . . . Parts Scanalyzed . | . . . . . . . . . . . . . Part Schematics Acquired . | . . . . . . . . . . . . . Parts Damaged . | . . . . . . . . . . . . . Bothacking | -11 -10 -9 -8 -7 -6 -6 -6 -5 -4 -4 -4 -4 ------------ Run | Scr Mat Mat Mat Fac Fac Low Low Fac Fac Was Fac Ext Used RIF Installer . | . . . . . . . . . . . . . Robots Hacked 2 | . . . . . . . . 2 . . . . Non-combat 2 | . . . . . . . . 2 . . . . Combat . | . . . . . . . . . . . . . Robot Hacks Applied 2 | . . . . . . . . 2 . . . . parse_system 1 | . . . . . . . . 1 . . . . no_distress 1 | . . . . . . . . 1 . . . . Relay Couplers Released . | . . . . . . . . . . . . . Fabnet Peak Effective % . | . . . . . . . . . . . . . Robots Rewired 10 | . . . . . . . . 2 . . . 8 Allies Hacked 2 | . . . . . . . . . . . 2 . Hacks Repelled . | . . . . . . . . . . . . . Allies | -11 -10 -9 -8 -7 -6 -6 -6 -5 -4 -4 -4 -4 -------- Run | Scr Mat Mat Mat Fac Fac Low Low Fac Fac Was Fac Ext Total Allies 34 | . . . . . . . . 2 . 21 . 11 Largest Group 20 | . . . . . . . . 2 . 20 13 7 Highest-Rated Group 705 | . . . . . . . . 98 . 705 565 299 Highest-Rated Ally 99 | . . . . . . . . 49 . 99 99 51 Total Orders . | . . . . . . . . . . . . . Ally Attacks 167 | . . . . . . . . 15 . 26 60 66 Total Damage 7174 | . . . . . . . . 1168 . 666 3174 2166 Kills 46 | . . . . . . . . 6 . 2 27 11 Allies Corrupted 1 | . . . . . . . . . . . 1 . Allies Melted 1 | . . . . . . . . . . . . 1 Intel | -11 -10 -9 -8 -7 -6 -6 -6 -5 -4 -4 -4 -4 ------- Run | Scr Mat Mat Mat Fac Fac Low Low Fac Fac Was Fac Ext Robot Analysis Total . | . . . . . . . . . . . . . Derelict Logs Recovered 3 | . . . . . . 2 1 . . . . . Drone Launches . | . . . . . . . . . . . . . Drone Recoveries . | . . . . . . . . . . . . . Exploration | -11 -10 -9 -8 -7 -6 -6 -6 -5 -4 -4 -4 -4 ------------- Run | Scr Mat Mat Mat Fac Fac Low Low Fac Fac Was Fac Ext Turns Passed 4546 | 74 196 301 215 234 66 101 98 368 399 1463 719 312 Spaces Moved 4816 | 53 152 290 311 558 217 373 104 523 566 462 969 238 Core 371 | 6 1 11 . . . . 3 24 90 230 . 6 Treads . | . . . . . . . . . . . . . Legs 29 | . . . . . . . . . . . . 29 Wheels 135 | 47 88 . . . . . . . . . . . Hover 649 | . 63 213 . . . . . . 7 160 206 . Flight 3632 | . . 66 311 558 217 373 101 499 469 72 763 203 Fastest Speed 17 | 50 56 37 20 17 26 26 26 30 32 50 25 25 Average Speed 65 | 76 70 47 33 27 26 26 37 34 44 287 52 68 Slowest Speed 600 | 80 150 100 117 99 26 26 250 100 200 600 360 200 Overloaded Moves 32 | . . . 22 10 . . . . . . . . Propulsion Burnouts . | . . . . . . . . . . . . . Robots Hopped 55 | . . 1 3 3 . 1 1 17 8 . 18 3 Cave-ins Triggered . | . . . . . . . . . . . . . Exploration Rate (%) 30 | 3 37 37 42 22 9 53 13 19 13 97 29 27 Regions Visited 12 Branch Regions 3 Pre-discovered Areas 1 | . . . . . . 1 . . . . . . Known Exits Taken 1 | . . . . . . . . . . . 1 . Unknown Exits Taken 9 | 1 1 1 1 1 1 1 1 1 . . . . Scrap Searched 5 | . . . . . . 3 2 . . . . . Spaces Dug 25 | . . 1 . 2 . . . . . 19 . 3 Terrain Destroyed 279 | . . 1 50 10 . . . . 1 37 153 27 Melee 6 | . . 1 . 2 . . . . . . . 3 Projectile 15 | . . . . . . . . . 1 . 14 . AOE 258 | . . . 50 8 . . . . . 37 139 24 Terrain Rammed . | . . . . . . . . . . . . . Walls Destroyed . | . . . . . . . . . . . . . Machines Disabled . | . . . . . . . . . . . . . Actions | -11 -10 -9 -8 -7 -6 -6 -6 -5 -4 -4 -4 -4 --------- Run | Scr Mat Mat Mat Fac Fac Low Low Fac Fac Was Fac Ext Total 5810 | 73 237 370 379 608 224 376 142 635 706 595 1104 361 Wait 497 | 2 74 9 24 . . 1 24 47 121 114 66 15 Move 4707 | 52 151 287 304 552 216 370 101 493 552 461 935 233 Hop 43 | . . 1 3 2 . 1 1 12 6 . 15 2 Pick Up 75 | 6 6 8 4 5 2 1 1 4 7 7 14 10 Fast Attach 56 | 2 . 3 13 12 1 . 3 7 . 3 7 5 Attach 54 | 5 2 8 . 3 2 1 1 5 5 5 10 7 Detach 10 | . . . . 2 1 . 1 2 1 1 2 . Swap 5 | . . . 1 2 . . . . . . . 2 Drop 53 | . 2 3 7 12 1 2 1 6 4 2 9 4 Fire 98 | 6 2 10 21 3 . . . 5 2 2 46 1 Melee 113 | . . 39 2 15 1 . 9 33 . . . 14 Ram 10 | . . 2 . . . . . . 8 . . . Kick . | . . . . . . . . . . . . . Crush . | . . . . . . . . . . . . . Escape Stasis . | . . . . . . . . . . . . . Rewire 89 | . . . . . . . . 21 . . . 68 Trap . | . . . . . . . . . . . . . Miscellaneous . | . . . . . . . . . . . . . Route ------- -11/Scrapyard -10/Materials (discovered 2 exits: *Mat / *Min) -9/Materials (discovered 2 exits: *Mat / Min) -8/Materials -7/Factory -6/Factory -6/Lower Caves -6/Lower Caves -5/Factory (discovered 3 exits: *Fac / *Upp x2) -4/Factory -4/Waste -4/Factory -4/Extension History --------- Turn | Location | Event 11 | -11/Scrapyard | Discovered new exit (range 15) 75 | -11/Scrapyard | Entered Materials 117 | -10/Materials | Identified exit to Mines 223 | -10/Materials | Discovered new exit (range 5) 271 | -10/Materials | Entered another Materials area 271 | -9/Materials | Evolved 2 slots: Propulsion x2 307 | -9/Materials | Identified exit to Mines 308 | -9/Materials | Build established: Mutant 521 | -9/Materials | Core integrity fell below 50% 545 | -9/Materials | Lost 9 parts (1p4n2u2w) 565 | -9/Materials | Discovered new exit (range 15) 572 | -9/Materials | Entered another Materials area 572 | -8/Materials | Evolved 2 slots: Utility x1, Weapon x1 783 | -8/Materials | Discovered new exit (range 9) 787 | -8/Materials | Entered Factory 787 | -7/Factory | Evolved 2 slots: Power x1, Propulsion x1 974 | -7/Factory | Lost 6 parts (4n2u) 985 | -7/Factory | Discovered new exit (range 14) 1021 | -7/Factory | Entered another Factory area 1021 | -6/Factory | Evolved 2 slots: Propulsion x1, Utility x1 1063 | -6/Factory | Discovered new exit (range 12) 1080 | -6/Factory | Spotted B-75 Beast 1087 | -6/Factory | Entered Lower Caves 1093 | -6/Lower Caves | Found Prototype Device 1116 | -6/Lower Caves | Learned location of 1 exit from Factory 1175 | -6/Lower Caves | Discovered new exit (range 12) 1188 | -6/Lower Caves | Entered another Lower Caves area 1235 | -6/Lower Caves | Lost 5 parts (2p2n1u) 1240 | -6/Lower Caves | Discovered new exit (range 7) 1250 | -6/Lower Caves | Learned Factory terminal intel 1268 | -6/Lower Caves | Build established: Sprinter 1286 | -6/Lower Caves | Entered Factory 1286 | -5/Factory | Evolved 2 slots: Utility x2 1287 | -5/Factory | Identified exit to Upper Caves 1287 | -5/Factory | Identified Heart of Steel 1288 | -5/Factory | Loaded intel: 26 terminal locations 1321 | -5/Factory | Discovered exit to Upper Caves (range 16) 1651 | -5/Factory | Discovered new exit (range 11) 1654 | -5/Factory | Entered another Factory area 1654 | -4/Factory | Evolved 2 slots: Utility x2 1681 | -4/Factory | Lost 7 parts (2p3n2w) 2035 | -4/Factory | Core integrity fell below 50% 2053 | -4/Factory | Sucked down chute 2053 | -4/Factory | Entered Waste 2054 | -4/Waste | Joined by Warlord forces that had cleared the area 2054 | -4/Waste | Lost 7 parts (2n4u1w) 2258 | -4/Waste | Build established: Mutant 2940 | -4/Waste | A Compactor rumbled back to life 2943 | -4/Waste | Spotted C-40 Crusher 2947 | -4/Waste | Allies destroyed C-40 Crusher 3090 | -4/Waste | A Compactor rumbled back to life 3090 | -4/Waste | Spotted C-40 Crusher 3090 | -4/Waste | Allies destroyed C-40 Crusher 3435 | -4/Waste | Discovered new exit (range 15) 3495 | -4/Waste | Heart of Steel transformed into Warbot 3516 | -4/Waste | Entered Factory 3516 | -4/Factory | Accompanied by 13 allies (Warbot) 3619 | -4/Factory | Found Prototype Processor 3620 | -4/Factory | Identified Exp. Signal Interpreter 3789 | -4/Factory | Core integrity fell below 20% 3973 | -4/Factory | Garrison activated, responded to threat 4228 | -4/Factory | Build established: Scavenger-Sprinter 4230 | -4/Factory | Discovered new exit (range 13) 4234 | -4/Factory | Identified exit to Extension 4235 | -4/Factory | Entered Extension 4363 | -4/Extension | Lost 8 parts (1p4n1u2w) 4406 | -4/Extension | Rescued a captive Derelict 4408 | -4/Extension | Rescued a captive Derelict 4447 | -4/Extension | Rescued a captive Derelict 4547 | -4/Extension | Destroyed by G-67 Veteran with Field Laser Last Messages --------------- 04517_ Destroyed Imp. Treads. 04517_ Destroyed Imp. Medium Armor Plating. 04517_ HV Slug penetrates Y-64 Sentinel. 04517_ Y-64 Sentinel destroyed. 04518_ G-67 Veteran suffers critical hit (Burn). 04519_ System corrupted: Flexi-carbon Leg rejected. 04519_ 6I-6NJ(g) destroyed. 04519_ UN-N4E(h) destroyed. 04525_ Acquired Myomer Leg. 04526_ QC-5D1(l) suffers critical hit (Burn). 04527_ Dropped Impulse Thruster. 04530_ U-05 Engineer builds a Wall. 04530_ Acquired 30 matter. 04531_ QC-5D1(l) heat damages Flexi-carbon Leg. 04532_ QC-5D1(l) suffers critical hit (Burn). 04532_ QC-5D1(l) destroyed. 04534_ Acquired Flexi-carbon Leg. 04538_ Nuclear Pulse Thruster destroyed. 04543_ G-67 Veteran destroyed. 04546_ G-67 Veteran Lgt. Antimatter Reactor severed. Map ----- +----------------------------------------------------+ | | | | | | | | | | | | | | | | | ?????????????????????????????????????????????????? | | ?????????????????????????????????????????????????? | | ?????????????????????????????????????????????????? | | ?????????????????????????????????????????????????? | | #####????????????????????????????????????????????? | | #????????????????????????????????????????????? | | ### #????????????????????????????????????????????? | | ??# #????????????????????????????????????????????? | | ??# #?????###????????????????????????????????????? | | ??# #?????# #????????????????????????????????????? | | ??# #????## ##????????######?????????????????????? | | ??# #????#T "#????????; #?????????????????????? | | ??# #???### "#????????# #?????????????????????? | | ??# ##### "#????????# #?????????????????????? | | ??# ##????????# #?????????????????????? | | ??####### [%#?????????#[[ #?????????????????????? | | ????????##*####???????#!%! #?????????????????????? | | ?????????# ##%#??????##w=@=#?????????????????????? | | ?????????#%%!#########%%!#g#?????????????????????? | | ?????????#*%!%=![%[%!=*[%# #?????????????????????? | | ?????????#############!% #?#?????????????????????? | | ?????????????????????##g##???????????????????????? | | ??????????????????????#%#????????????????????????? | | ??????????????????????#/#????????????????????????? | | ?????????????????????? ????????????????????????? | | ?????????????????????? ????????????????????????? | | ????????????????????? ????????????????????????? | | ????????????????????? #???????????????????????? | | ?????????????????????#####???????????????????????? | | ?????????????????????????????????????????????????? | | ?????????????????????????????????????????????????? | | ?????????????????????????????????????????????????? | | ?????????????????????????????????????????????????? | | ?????????????????????????????????????????????????? | | ?????????????????????????????????????????????????? | | ?????????????????????????????????????????????????? | | ?????????????????????????????????????????????????? | | ?????????????????????????????????????????????????? | | ?????????????????????????????????????????????????? | | ?????????????????????????????????????????????????? | | ?????????????????????????????????????????????????? | | ?????????????????????????????????????????????????? | +----------------------------------------------------+ Best States ------------- Heat Dissipation 43 Energy Generation 37 Energy Capacity 550 Matter Stores 300 Matter Capacity 300 Sight Range 16 Terrain Scan Range 16 Terrain Scan Density 10 Additional Mass Support 9 Armor Coverage 150 Resistance: KI 25 Phase Shifting 5 Evasion (%) 73 Targeting Accuracy 18 Target Analysis 6 Salvage Targeting 4 Offensive Hacking 10 Defensive Hacking 10 Item Schematics ----------------- Adv. Targeting Computer | -8/Materials | Hacked Robot Schematics ------------------ None Fabricated ------------ Nothing Alien Tech Used ----------------- None Achievements -------------- None Challenges ------------ None Game ------ Seed AlertDynamicReplicator Manual? 0 Play Time 01:34:36 Cumulative 150.0 hours Start 2022.07.11 @ 15:31:09 End 2022.07.12 @ 10:43:34 Sessions 3 Manual Loads 0 Difficulty Rogue Special Mode None Game No. 140 Rogue 139 Adventurer 1 Explorer 0 Win Type - Total 1 Types 1/0/0/0/0/0/0/0/0 Lore% 47 Gallery% 67 Achievement% 48 Wizard Run 0 Options --------- ASCII 0 Keyboard 0 Movement Numpad Keybinds 0 Fullscreen 0 Font 20/SmallcapsGlow Map View 76x50 Tactical HUD 1 Map Filters NONE Filters NONE Steam X RUN: 3eab9fc5-8b12-4cc5-ad26-61d6c11f26ab